Workbook

Sheet Toel. wijz. NE6R (aug. 2016)
B2: Toelichting bij berekening gewijzigde x-factoren, q-factoren en rekenvolumina NE6R d.d. 25 augustus 2016
B4: Toelichting bij dit bestand
B6: Dit bestand bevat het rekenmodel waarmee ACM de q-factoren berekent. Deze q-factoren heeft ACM vastgesteld in de volgende besluiten.
B9: Toelichting op de wijziging: op het blad 'q-factoren' zijn de Begininkomsten en x-factoren opnieuw ingevoerd (op basis van gewijzigd berekening augustus 2016)
B11: Wijziging besluiten 2014-2016 Elektriciteit (NE6R) d.d. 25 augustus 2016 | C11: Zaaknummer | D11: Kenmerk
B12: Cogas Infra & Beheer B.V. | C12: 16.0786.52 | D12: ACM/DE/2016/204809
B13: DELTA Netwerkbedrijf B.V. | C13: 16.0788.52 | D13: ACM/DE/2016/204811
B14: Enexis B.V. | C14: 16.0791.52 | D14: ACM/DE/2016/204813
B15: Liander N.V. | C15: 16.0793.52 | D15: ACM/DE/2016/204815
B16: Endinet B.V. | C16: 16.0795.52 | D16: ACM/DE/2016/204817
B17: RENDO Netbeheer B.V. | C17: 16.0797.52 | D17: ACM/DE/2016/204819
B18: Stedin Netbeheer B.V. | C18: 16.0800.52 | D18: ACM/DE/2016/204821
B19: Westland Infra Netbeheer B.V. | C19: 16.0802.52 | D19: ACM/DE/2016/204823
B21: Legenda celkleuren
B23: Data en input
B25: Berekende waarde
B27: Waarde die zonder berekening wordt overgenomen uit een andere cel
B29: Berekende of overgenomen waarde en tevens resultaat
B31: Waarde of berekening die speciale aandacht vraagt (toelichting in opmerking)
B33: Waarde of berekening die (vooralsnog) kennelijk onjuist of onvolledig is

Sheet Toel. herstel NE6R (sep. 2014)
B2: Toelichting bij berekening gewijzigde x-factoren, q-factoren en rekenvolumina NE6R d.d. 11 september 2014
B4: Toelichting bij dit bestand
B6: Dit bestand bevat het rekenmodel waarmee ACM de q-factoren berekent. Deze q-factoren heeft ACM vastgesteld in de volgende besluiten.
B9: Herstel besluiten 2014-2016 Elektriciteit (NE6R) d.d. 11 september 2014 | C9: Zaaknummer | D9: Kenmerk
B10: Cogas Infra & Beheer B.V. | C10: 14.0730.52 | D10: ACM/DE/2014/205161
B11: DELTA Netwerkbedrijf B.V. | C11: 14.0732.52 | D11: ACM/DE/2014/205163
B12: Enexis B.V. | C12: 14.0734.52 | D12: ACM/DE/2014/205165
B13: Liander N.V. | C13: 14.0736.52 | D13: ACM/DE/2014/205167
B14: Endinet B.V. | C14: 14.0738.52 | D14: ACM/DE/2014/205169
B15: RENDO Netbeheer B.V. | C15: 14.0740.52 | D15: ACM/DE/2014/205171
B16: Stedin Netbeheer B.V. | C16: 14.0742.52 | D16: ACM/DE/2014/205173
B17: Westland Infra Netbeheer B.V. | C17: 14.0744.52 | D17: ACM/DE/2014/205175
B19: Legenda celkleuren
B21: Data en input
B23: Berekende waarde
B25: Waarde die zonder berekening wordt overgenomen uit een andere cel
B27: Berekende of overgenomen waarde en tevens resultaat
B29: Waarde of berekening die speciale aandacht vraagt (toelichting in opmerking)
B31: Waarde of berekening die (vooralsnog) kennelijk onjuist of onvolledig is

Sheet Toelichting
B5: Toelichting
B8: Toelichting
B10: Dit Excel-bestand bevat het model waarmee de q-factoren voor regionale netbeheerders elektriciteit worden berekend,
B11: zoals dat is beschreven in het methodebesluit regionale netbeheerders elektriciteit zesde reguleringsperiode: besluit van 26 september 2013 met kenmerk 103999/536.
B12: De q factoren zijn voor de verschillende netbeheerders vastgesteld in de x-factorbesluiten zoals onderaan deze pagina in een overzicht is weergegeven.
B14: Legenda celkleuren
B16: Brondata
B18: Berekende waarde
B20: Waarde die zonder berekening wordt opgehaald uit een andere cel
B22: Berekende waarde en tevens resultaat
B24: Opbouw Excel-sheet
B26: Sheet: Data
B27: Deze sheet bevat de data die als input gebruikt worden voor de berekeningen (kwaliteitsdata per netbeheerder).
B28: De data betreft cijfers voor de transportzekerheid van de regionale netbeheerders voor wat betreft hun LS-afnemers.
B29: De afkorting TA betreft het totale aantal afnemers, zowel de eigen afnemers alsook de afnemers bij een eventuele onderliggende netbeheerder.
B31: Sheet: Verrekening onder-boven
B32: Deze sheet bevat de door de netbeheerders aangeleverde data met betrekking tot de aantallen LS-afnemers bij onder- en bovenliggende netbeheerders.
B33: Waar voor het jaar 2010 de data nog niet volledig consistent was, heeft ACM ervoor gekozen om de data van de onderliggende
B34: netbeheerder te hanteren.
B36: OPMERKING: De controle regel op het zero-sum effect geeft niet altijd precies 0 aan, omdat er voor enkele netbeheerders een inconsistentie bestaat
B37: tussen het opgegeven totaal aantal afnemers op het MS- en LS-netvlak en de opgegeven aantallen onder- en bovenliggende LS-afnemers.
B39: Sheet: q-factoren
B40: Deze sheet bevat de berekening van de concept q-factoren inclusief een correctie van de SAIFI voor onder- en bovenliggende netbeheerders.
B42: De Begininkomsten en de x-factoren zijn nodig om de q-factoren te berekenen.
B43: Voor de defintieve berekening van de q-factoren zijn de vastgestelde x-factoren en de BeginInkomsten 2013 gebruikt.
B45: Voor het berekenen van de waardering is gebruik gemaakt van een speciaal hiervoor geconstrueerde Excel-functie.
B46: Deze functie ("SEO") heeft als input parameters:
B47: - of de waardering voor Huishoudens ("H") of voor MKB ("B") berekend moet worden
B48: - de SAIFI
B49: - de CAIDI
B50: De uitkomst van de functie is in prijspeil 2008.
B52: Om de concept-q-factoren te berekenen wordt gebruikt gemaakt van de knop 'Doelzoeken'.
B53: Achter deze knop zit een macro die:
B54: -de regel met de naam 'doelzoekregel' voor alle netbeheerders gelijkstelt aan nul
B55: - door de volgende regel (de concept q-factor) voor deze netbeheerder de juiste waarde te geven
B57: Sheet: Parameters
B58: Deze sheet bevat de parameters die als input gebruikt worden voor de berekeningen, o.a.:
B59: - parameters van de SEO-waarderingsfunctie
B60: - relevante CPI's
B61: - verhouding huishoudens / MKB-ers
B62: - gewichten van boven- en onderliggende netbeheerders
B64: Overzicht X-factorbesluiten behorende bij methodebesluit regionale netbeheerders elektriciteit zesde reguleringsperiode: besluit van 26 september 2013 met kenmerk 103999/536
B66: X-factorbesluiten Elektriciteit | C66: Zaaknummer | D66: Kenmerk
B67: Cogas Infra & Beheer B.V. | C67: 13.0789.52 | D67: ACM/DE/2013/204370
B68: DELTA Netwerkbedrijf B.V. | C68: 13.0791.52 | D68: ACM/DE/2013/204372
B69: Endinet B.V. | C69: 13.0797.52 | D69: ACM/DE/2013/204377
B70: Enexis B.V. | C70: 13.0793.52 | D70: ACM/DE/2013/204374
B71: Liander N.V. | C71: 13.0795.52 | D71: ACM/DE/2013/204368
B72: N.V. RENDO | C72: 13.0799.52 | D72: ACM/DE/2013/204379
B73: Stedin Netbeheer B.V. | C73: 13.0801.52 | D73: ACM/DE/2013/204383
B74: Westland Infra Netbeheer B.V. | C74: 13.0803.52 | D74: ACM/DE/2013/204385

Sheet Data
B4: Data
B9: Data transportzekerheid per netbeheerder - LS-afnemers
B11: Bron: ingevulde CODATA NE-KDT (2010 en 2011) dataverzoeken en ingevulde CODATA NE-KWA (2012) dataverzoeken
B13: 2010 | D13: COGAS | E13: DNWB | F13: ENDINET | G13: ENEXIS | H13: LIANDER | I13: RENDO | J13: STEDIN | K13: WESTLAND
B14: MS-netvlak | C14: TA | D14: 52763 | E14: 203281 | F14: 105360 | G14: 2826483 | H14: 2742765 | I14: 31637 | J14: 2053470 | K14: 67277
C15: ΣGA | D15: 3149 | E15: 64879 | F15: 21902 | G15: 467242 | H15: 754527 | I15: 5744 | J15: 299120 | K15: 43920
C16: Σ(GAxT) | D16: 188345 | E16: 4227347 | F16: 902813 | G16: 42935474 | H16: 61705512 | I16: 379128 | J16: 35840202 | K16: 1952696
C17: SAIFI MS | D17: =D15/D14 -> 0.05968197411 | E17: =E15/E14 -> 0.3191591934 | F17: 0.2078777525 | G17: 0.1653086185 | H17: 0.2750972103 | I17: 0.1815595663 | J17: 0.1456656294 | K17: 0.6528234018
B18: LS-netvlak | C18: TA | D18: 52699 | E18: 203281 | F18: 105324 | G18: 2597100 | H18: 2694813 | I18: 31637 | J18: 2053470 | K18: 53190
C19: ΣGA | D19: 1466 | E19: 14387 | F19: 3361 | G19: 91984 | H19: 135651 | I19: 936 | J19: 69542 | K19: 891
C20: Σ(GAxT) | D20: 126451 | E20: 1120864 | F20: 354385 | G20: 15991339 | H20: 21096440 | I20: 133873 | J20: 10488487 | K20: 94947
C21: SAIFI LS | D21: =D19/D18 -> 0.02781836467 | E21: =E19/E18 -> 0.0707739533 | F21: 0.03191105541 | G21: 0.03541796619 | H21: 0.05033781565 | I21: 0.02958561178 | J21: 0.0338656031 | K21: 0.01675126904
B22: Totaal | C22: CAIDI | D22: =(D16+D20)/(D15+D19) -> 68.21148429 | E22: =(E16+E20)/(E15+E19) -> 67.47169026 | F22: 49.76439853 | G22: 105.3720911 | H22: 93.01729766 | I22: 76.79655689 | J22: 125.6671124 | K22: 45.69509719
C23: SAIFI | D23: =D17+D21 -> 0.08750033879 | E23: =E17+E21 -> 0.3899331467 | F23: 0.2397888079 | G23: 0.2007265847 | H23: 0.3254350259 | I23: 0.2111451781 | J23: 0.1795312325 | K23: 0.6695746708
C24: TA | D24: =D18 -> 52699 | E24: =E18 -> 203281 | F24: 105324 | G24: 2597100 | H24: 2694813 | I24: 31637 | J24: 2053470 | K24: 53190
B26: 2011 | D26: COGAS | E26: DNWB | F26: ENDINET | G26: ENEXIS | H26: LIANDER | I26: RENDO | J26: STEDIN | K26: WESTLAND
B27: MS-netvlak | C27: TA | D27: 52630 | E27: 208256 | F27: 106066 | G27: 2847159 | H27: 2771415 | I27: 31867 | J27: 2066075 | K27: 69764
C28: ΣGA | D28: 4426 | E28: 36714 | F28: 45813 | G28: 527389 | H28: 565290 | I28: 1480 | J28: 302884 | K28: 17172
C29: Σ(GAxT) | D29: 196254 | E29: 1841742 | F29: 3450133 | G29: 33746458 | H29: 35962744 | I29: 124687 | J29: 36640859 | K29: 822358
C30: SAIFI MS | D30: =D28/D27 -> 0.0840965229 | E30: =E28/E27 -> 0.1762926398 | F30: 0.4319291762 | G30: 0.1852334204 | H30: 0.2039716174 | I30: 0.04644302884 | J30: 0.146598744 | K30: 0.2461441431
B31: LS-netvlak | C31: TA | D31: 52566 | E31: 208256 | F31: 106030 | G31: 2616840 | H31: 2771415 | I31: 31867 | J31: 2050254 | K31: 53943
C32: ΣGA | D32: 1236 | E32: 16099 | F32: 2982 | G32: 93155 | H32: 129516 | I32: 1147 | J32: 63574 | K32: 2787
C33: Σ(GAxT) | D33: 91359 | E33: 1272912 | F33: 292549 | G33: 15459555 | H33: 18522434 | I33: 120136 | J33: 6329372 | K33: 207711
C34: SAIFI LS | D34: =D32/D31 -> 0.02351329757 | E34: =E32/E31 -> 0.07730389521 | F34: 0.02812411582 | G34: 0.03559827884 | H34: 0.04673280617 | I34: 0.03599334735 | J34: 0.03100786537 | K34: 0.05166564707
B35: Totaal | C35: CAIDI | D35: =(D29+D33)/(D28+D32) -> 50.79706817 | E35: =(E29+E33)/(E28+E32) -> 58.9751387 | F35: 76.70216211 | G35: 79.29496216 | H35: 78.41782886 | I35: 93.19489912 | J35: 117.2582697 | K35: 51.60924896
C36: SAIFI | D36: =D30+D34 -> 0.1076098205 | E36: =E30+E34 -> 0.253596535 | F36: 0.460053292 | G36: 0.2208316992 | H36: 0.2507044236 | I36: 0.08243637619 | J36: 0.1776066094 | K36: 0.2978097902
C37: TA | D37: =D31 -> 52566 | E37: =E31 -> 208256 | F37: 106030 | G37: 2616840 | H37: 2771415 | I37: 31867 | J37: 2050254 | K37: 53943
B39: 2012 | D39: COGAS | E39: DNWB | F39: ENDINET | G39: ENEXIS | H39: LIANDER | I39: RENDO | J39: STEDIN | K39: WESTLAND
B40: MS-netvlak | C40: TA | D40: 52816 | E40: 209102 | F40: 107729 | G40: 2867380 | H40: 2947297 | I40: 32125 | J40: 2066813 | K40: 70588
C41: ΣGA | D41: 10268 | E41: 43609 | F41: 8591 | G41: 543631 | H41: 700728 | I41: 3773 | J41: 403959 | K41: 5989
C42: Σ(GAxT) | D42: 496174 | E42: 2446626 | F42: 676873 | G42: 43466364 | H42: 45707777 | I42: 195256 | J42: 56766608 | K42: 290242
C43: SAIFI MS | D43: =D41/D40 -> 0.1944107846 | E43: 0.2085537202 | F43: 0.07974640069 | G43: 0.1895915435 | H43: 0.2377527613 | I43: 0.1174474708 | J43: 0.1954501931 | K43: 0.08484444948
B44: LS-netvlak | C44: TA | D44: 52752 | E44: 209102 | F44: 107693 | G44: 2635273 | H44: 2898074 | I44: 32125 | J44: 2049207 | K44: 54767
C45: ΣGA | D45: 1979 | E45: 18624 | F45: 2675 | G45: 93708 | H45: 149684 | I45: 884 | J45: 74158 | K45: 2389
C46: Σ(GAxT) | D46: 185898 | E46: 1602533 | F46: 253714 | G46: 16700424 | H46: 23779668 | I46: 105128 | J46: 12100855 | K46: 220590
C47: SAIFI LS | D47: =D45/D44 -> 0.0375151653 | E47: =E45/E44 -> 0.08906657995 | F47: 0.02483912603 | G47: 0.03555912423 | H47: 0.05164947479 | I47: 0.02751750973 | J47: 0.03618863297 | K47: 0.04362115873
B48: Totaal | C48: CAIDI | D48: =(D42+D46)/(D41+D45) -> 55.69298604 | E48: 65.06449954 | F48: 82.60136694 | G48: 94.40311671 | H48: 81.71032982 | I48: 64.50161048 | J48: 144.038934 | K48: 60.97302459
C49: SAIFI | D49: =D43+D47 -> 0.2319259499 | E49: =E43+E47 -> 0.2976203001 | F49: 0.1045855267 | G49: 0.2251506677 | H49: 0.289402236 | I49: 0.1449649805 | J49: 0.2316388261 | K49: 0.1284656082
C50: TA | D50: =D44 -> 52752 | E50: 209102 | F50: 107693 | G50: 2635273 | H50: 2898074 | I50: 32125 | J50: 2049207 | K50: 54767

Sheet Verrekening onder-boven
B3: Verrekening aantallen onder- en
B4: bovenliggende netbeheerders
B10: Verrekening 2010
B12: SectorSAIFI (MS) | C12: =SUM(Data!D15:K15)/SUM(Data!D18:K18) -> 0.2131142933
B14: Data aantallen onderliggende LS-afnemers
D15: Bovenliggende netbeheerder
D16: COGAS | E16: DNWB | F16: ENDINET | G16: ENEXIS | H16: LIANDER | I16: RENDO | J16: STEDIN | K16: WESTLAND
B17: Onderliggende netbeheerder | C17: COGAS | G17: 52699
C18: DNWB
C19: ENDINET | G19: 105324
C20: ENEXIS | D20: 64 | F20: 36 | H20: 22852
C21: LIANDER | G21: 18030
C22: RENDO | G22: 31637
C23: STEDIN | G23: 21876 | H23: 24421 | K23: 15825
C24: WESTLAND | J24: 1788
B26: Berekening onderliggende GA o.b.v. SectorSAIFI (MS)
D27: Bovenliggende netbeheerder
D28: COGAS | E28: DNWB | F28: ENDINET | G28: ENEXIS | H28: LIANDER | I28: RENDO | J28: STEDIN | K28: WESTLAND
B29: Onderliggende netbeheerder | C29: COGAS | E29: =E17*$C$12 -> 0 | F29: 0 | G29: 11230.91014 | H29: 0 | I29: 0 | J29: 0 | K29: 0
C30: DNWB | D30: =D18*$C$12 -> 0 | F30: 0 | G30: 0 | H30: 0 | I30: 0 | J30: 0 | K30: 0
C31: ENDINET | D31: 0 | E31: 0 | G31: 22446.04983 | H31: 0 | I31: 0 | J31: 0 | K31: 0
C32: ENEXIS | D32: =D20*$C$12 -> 13.63931477 | E32: 0 | F32: 7.67211456 | H32: 4870.087831 | I32: 0 | J32: 0 | K32: 0
C33: LIANDER | D33: 0 | E33: 0 | F33: 0 | G33: 3842.450709 | I33: 0 | J33: 0 | K33: 0
C34: RENDO | D34: 0 | E34: 0 | F34: 0 | G34: 6742.296898 | H34: 0 | J34: 0 | K34: 0
C35: STEDIN | D35: 0 | E35: 0 | F35: 0 | G35: 4662.088281 | H35: 5204.464157 | I35: 0 | K35: 3372.533692
C36: WESTLAND | D36: 0 | E36: 0 | F36: 0 | G36: 0 | H36: 0 | I36: 0 | J36: 381.0483565
B39: Berekening gecorrigeerde SAIFI | D39: COGAS | E39: DNWB | F39: ENDINET | G39: ENEXIS | H39: LIANDER | I39: RENDO | J39: STEDIN | K39: WESTLAND
B41: Correctie ΣGA(MS) | D41: =AandeelOnder*SUM(D29:D36)+AandeelBoven*SUM(D29:K29) -> 574.5028562 | E41: =AandeelOnder*SUM(E29:E36)+AandeelBoven*SUM(D30:K30) -> 0 | F41: =AandeelOnder*SUM(F29:F36)+AandeelBoven*SUM(D31:K31) -> 1129.591 | G41: =AandeelOnder*SUM(G29:G36)+AandeelBoven*SUM(D32:K32) -> 46722.17603 | H41: =AandeelOnder*SUM(H29:H36)+AandeelBoven*SUM(D33:K33) -> 9762.946924 | I41: =AandeelOnder*SUM(I29:I36)+AandeelBoven*SUM(D34:K34) -> 337.1148449 | J41: =AandeelOnder*SUM(J29:J36)+AandeelBoven*SUM(D35:K35) -> 1023.950245 | K41: =AandeelOnder*SUM(K29:K36)+AandeelBoven*SUM(D36:K36) -> 3222.959425
B42: Gecorrigeerde ΣGA(MS) | D42: =Data!D15+D41 -> 3723.502856 | E42: =Data!E15+E41 -> 64879 | F42: =Data!F15+F41 -> 23031.591 | G42: =Data!G15+G41 -> 513964.176 | H42: =Data!H15+H41 -> 764289.9469 | I42: =Data!I15+I41 -> 6081.114845 | J42: =Data!J15+J41 -> 300143.9502 | K42: =Data!K15+K41 -> 47142.95943
B43: Gecorrigeerde SAIFI (MS) | D43: =D42/Data!D14 -> 0.07057034013 | E43: =E42/Data!E14 -> 0.3191591934 | F43: =F42/Data!F14 -> 0.2185990034 | G43: =G42/Data!G14 -> 0.1818387643 | H43: =H42/Data!H14 -> 0.2786567376 | I43: =I42/Data!I14 -> 0.192215281 | J43: =J42/Data!J14 -> 0.1461642733 | K43: =K42/Data!K14 -> 0.7007292154
B45: Gecorrigeerde SAIFI totaal | D45: =D43+Data!D21 -> 0.0983887048 | E45: =E43+Data!E21 -> 0.3899331467 | F45: =F43+Data!F21 -> 0.2505100588 | G45: =G43+Data!G21 -> 0.2172567305 | H45: =H43+Data!H21 -> 0.3289945533 | I45: =I43+Data!I21 -> 0.2218008928 | J45: =J43+Data!J21 -> 0.1800298764 | K45: =K43+Data!K21 -> 0.7174804844
B47: Oorspronkelijke SAIFI totaal | D47: =Data!D23 -> 0.08750033879 | E47: =Data!E23 -> 0.3899331467 | F47: =Data!F23 -> 0.2397888079 | G47: =Data!G23 -> 0.2007265847 | H47: =Data!H23 -> 0.3254350259 | I47: =Data!I23 -> 0.2111451781 | J47: =Data!J23 -> 0.1795312325 | K47: =Data!K23 -> 0.6695746708
B48: Check op zero-sum effect | C48: =C12-SUM(D42:K42)/SUM(Data!D14:K14) -> -7.988784273e-05
B51: Verrekening 2011
B53: SectorSAIFI (MS) | C53: =SUM(Data!D28:K28)/SUM(Data!D31:K31) -> 0.1902338702
B55: Data aantallen onderliggende LS-afnemers
D56: Bovenliggende netbeheerder
D57: COGAS | E57: DNWB | F57: ENDINET | G57: ENEXIS | H57: LIANDER | I57: RENDO | J57: STEDIN | K57: WESTLAND
B58: Onderliggende netbeheerder | C58: COGAS | G58: 52566
C59: DNWB
C60: ENDINET | G60: 106030
C61: ENEXIS | D61: 64 | F61: 36 | H61: 23743
C62: LIANDER | G62: 17862
C63: RENDO | G63: 31867
C64: STEDIN | G64: 21893 | H64: 24383 | K64: 15821
C65: WESTLAND | J65: 1785
B67: Berekening onderliggende GA o.b.v. SectorSAIFI (MS)
D68: Bovenliggende netbeheerder
D69: COGAS | E69: DNWB | F69: ENDINET | G69: ENEXIS | H69: LIANDER | I69: RENDO | J69: STEDIN | K69: WESTLAND
B70: Onderliggende netbeheerder | C70: COGAS | E70: =E58*$C$53 -> 0 | F70: 0 | G70: 9999.833623 | H70: 0 | I70: 0 | J70: 0 | K70: 0
C71: DNWB | D71: =D59*$C$53 -> 0 | F71: =F59*$C$53 -> 0 | G71: 0 | H71: 0 | I71: 0 | J71: 0 | K71: 0
C72: ENDINET | D72: 0 | E72: =E60*$C$53 -> 0 | G72: =G60*$C$53 -> 20170.49726 | H72: =H60*$C$53 -> 0 | I72: =I60*$C$53 -> 0 | J72: =J60*$C$53 -> 0 | K72: =K60*$C$53 -> 0
C73: ENEXIS | D73: 12.17496769 | E73: =E61*$C$53 -> 0 | F73: 6.848419328 | H73: =H61*$C$53 -> 4516.722781 | I73: =I61*$C$53 -> 0 | J73: =J61*$C$53 -> 0 | K73: =K61*$C$53 -> 0
C74: LIANDER | D74: 0 | E74: 0 | F74: 0 | G74: 3397.95739 | I74: =I62*$C$53 -> 0 | J74: =J62*$C$53 -> 0 | K74: =K62*$C$53 -> 0
C75: RENDO | D75: 0 | E75: 0 | F75: 0 | G75: 6062.182743 | H75: 0 | J75: =J63*$C$53 -> 0 | K75: =K63*$C$53 -> 0
C76: STEDIN | D76: 0 | E76: 0 | F76: 0 | G76: 4164.790121 | H76: 4638.472458 | I76: 0 | K76: =K64*$C$53 -> 3009.690061
C77: WESTLAND | D77: 0 | E77: 0 | F77: 0 | G77: 0 | H77: 0 | I77: 0 | J77: =J65*$C$53 -> 339.5674584
B80: Berekening gecorrigeerde SAIFI | D80: COGAS | E80: DNWB | F80: ENDINET | G80: ENEXIS | H80: LIANDER | I80: RENDO | J80: STEDIN | K80: WESTLAND
B82: Correctie ΣGA(MS) | D82: =AandeelOnder*SUM(D70:D77)+AandeelBoven*SUM(D70:K70) -> 511.5579004 | E82: =AandeelOnder*SUM(E70:E77)+AandeelBoven*SUM(D71:K71) -> 0 | F82: =AandeelOnder*SUM(F70:F77)+AandeelBoven*SUM(D72:K72) -> 1015.030861 | G82: =AandeelOnder*SUM(G70:G77)+AandeelBoven*SUM(D73:K73) -> 41832.28539 | H82: =AandeelOnder*SUM(H70:H77)+AandeelBoven*SUM(D74:K74) -> 8867.333346 | I82: =AandeelOnder*SUM(I70:I77)+AandeelBoven*SUM(D75:K75) -> 303.1091371 | J82: =AandeelOnder*SUM(J70:J77)+AandeelBoven*SUM(D76:K76) -> 913.2367174 | K82: =AandeelOnder*SUM(K70:K77)+AandeelBoven*SUM(D77:K77) -> 2876.183931
B83: Gecorrigeerde ΣGA(MS) | D83: =Data!D28+D82 -> 4937.5579 | E83: =Data!E28+E82 -> 36714 | F83: =Data!F28+F82 -> 46828.03086 | G83: =Data!G28+G82 -> 569221.2854 | H83: =Data!H28+H82 -> 574157.3333 | I83: =Data!I28+I82 -> 1783.109137 | J83: =Data!J28+J82 -> 303797.2367 | K83: =Data!K28+K82 -> 20048.18393
B84: Gecorrigeerde SAIFI (MS) | D84: =D83/Data!D27 -> 0.0938164146 | E84: =E83/Data!E27 -> 0.1762926398 | F84: =F83/Data!F27 -> 0.4414989805 | G84: =G83/Data!G27 -> 0.1999260615 | H84: =H83/Data!H27 -> 0.2071711863 | I84: =I83/Data!I27 -> 0.05595472235 | J84: =J83/Data!J27 -> 0.1470407593 | K84: =K83/Data!K27 -> 0.28737148
B86: Gecorrigeerde SAIFI totaal | D86: =D84+Data!D34 -> 0.1173297122 | E86: =E84+Data!E34 -> 0.253596535 | F86: =F84+Data!F34 -> 0.4696230963 | G86: =G84+Data!G34 -> 0.2355243404 | H86: =H84+Data!H34 -> 0.2539039925 | I86: =I84+Data!I34 -> 0.0919480697 | J86: =J84+Data!J34 -> 0.1780486246 | K86: =K84+Data!K34 -> 0.3390371271
B88: Oorspronkelijke SAIFI totaal | D88: =Data!D36 -> 0.1076098205 | E88: =Data!E36 -> 0.253596535 | F88: =Data!F36 -> 0.460053292 | G88: =Data!G36 -> 0.2208316992 | H88: =Data!H36 -> 0.2507044236 | I88: =Data!I36 -> 0.08243637619 | J88: =Data!J36 -> 0.1776066094 | K88: =Data!K36 -> 0.2978097902
B89: Check op zero-sum effect | C89: =C53-SUM(D83:K83)/SUM(Data!D27:K27) -> -0.000793042442
B92: Verrekening 2012
B94: SectorSAIFI (MS) | C94: =SUM(Data!D41:K41)/SUM(Data!D44:K44) -> 0.2140253139
B96: Data aantallen onderliggende LS-afnemers
D97: Bovenliggende netbeheerder
D98: COGAS | E98: DNWB | F98: ENDINET | G98: ENEXIS | H98: LIANDER | I98: RENDO | J98: STEDIN | K98: WESTLAND
B99: Onderliggende netbeheerder | C99: COGAS | E99: - | F99: - | G99: 52753 | H99: - | I99: - | J99: - | K99: -
C100: DNWB | D100: - | F100: - | G100: - | H100: - | I100: - | J100: - | K100: -
C101: ENDINET | D101: - | E101: - | G101: 107693 | H101: - | I101: - | J101: - | K101: -
C102: ENEXIS | D102: 64 | E102: - | F102: 36 | H102: 23910 | I102: - | J102: - | K102: -
C103: LIANDER | D103: - | E103: - | F103: - | G103: 18029 | I103: - | J103: - | K103: -
C104: RENDO | D104: - | E104: - | F104: - | G104: 32125 | H104: - | J104: - | K104: -
C105: STEDIN | D105: - | E105: - | F105: - | G105: 21508 | H105: 25313 | I105: - | K105: 15821
C106: WESTLAND | D106: - | E106: - | F106: - | G106: - | H106: - | I106: - | J106: 1785
B108: Berekening onderliggende GA o.b.v. SectorSAIFI (MS)
D109: Bovenliggende netbeheerder
D110: COGAS | E110: DNWB | F110: ENDINET | G110: ENEXIS | H110: LIANDER | I110: RENDO | J110: STEDIN | K110: WESTLAND
B111: Onderliggende netbeheerder | C111: COGAS | E111: - | F111: - | G111: =G99*$C$53 -> 10035.40736 | H111: - | I111: - | J111: - | K111: -
C112: DNWB | D112: - | F112: - | G112: - | H112: - | I112: - | J112: - | K112: -
C113: ENDINET | D113: - | E113: - | G113: =G101*$C$53 -> 20486.85619 | H113: - | I113: - | J113: - | K113: -
C114: ENEXIS | D114: =D102*$C$53 -> 12.17496769 | E114: - | F114: =F102*$C$53 -> 6.848419328 | H114: =H102*$C$53 -> 4548.491837 | I114: - | J114: - | K114: -
C115: LIANDER | D115: - | E115: - | F115: - | G115: =G103*$C$53 -> 3429.726446 | I115: - | J115: - | K115: -
C116: RENDO | D116: - | E116: - | F116: - | G116: =G104*$C$53 -> 6111.263081 | H116: - | J116: - | K116: -
C117: STEDIN | D117: - | E117: - | F117: - | G117: =G105*$C$53 -> 4091.550081 | H117: =H105*$C$53 -> 4815.389957 | I117: - | K117: =K105*$C$53 -> 3009.690061
C118: WESTLAND | D118: - | E118: - | F118: - | G118: - | H118: - | I118: - | J118: =J106*$C$53 -> 339.5674584
B121: Berekening gecorrigeerde SAIFI | D121: COGAS | E121: DNWB | F121: ENDINET | G121: ENEXIS | H121: LIANDER | I121: RENDO | J121: STEDIN | K121: WESTLAND
B123: Correctie ΣGA(MS) | D123: =AandeelOnder*SUM(D111:D118)+AandeelBoven*SUM(D111:K111) -> 513.3365871 | E123: =AandeelOnder*SUM(E111:E118)+AandeelBoven*SUM(D112:K112) -> 0 | F123: =AandeelOnder*SUM(F111:F118)+AandeelBoven*SUM(D113:K113) -> 1030.848808 | G123: =AandeelOnder*SUM(G111:G118)+AandeelBoven*SUM(D114:K114) -> 42175.43876 | H123: =AandeelOnder*SUM(H111:H118)+AandeelBoven*SUM(D115:K115) -> 9067.174027 | I123: =AandeelOnder*SUM(I111:I118)+AandeelBoven*SUM(D116:K116) -> 305.5631541 | J123: =AandeelOnder*SUM(J111:J118)+AandeelBoven*SUM(D117:K117) -> 918.4205904 | K123: =AandeelOnder*SUM(K111:K118)+AandeelBoven*SUM(D118:K118) -> 2876.183931
B124: Gecorrigeerde ΣGA(MS) | D124: =Data!D41+D123 -> 10781.33659 | E124: =Data!E41+E123 -> 43609 | F124: =Data!F41+F123 -> 9621.848808 | G124: =Data!G41+G123 -> 585806.4388 | H124: =Data!H41+H123 -> 709795.174 | I124: =Data!I41+I123 -> 4078.563154 | J124: =Data!J41+J123 -> 404877.4206 | K124: =Data!K41+K123 -> 8865.183931
B125: Gecorrigeerde SAIFI (MS) | D125: =D124/Data!D40 -> 0.2041301232 | E125: =E124/Data!E40 -> 0.2085537202 | F125: =F124/Data!F40 -> 0.08931530793 | G125: =G124/Data!G40 -> 0.2043002458 | H125: =H124/Data!H40 -> 0.2408291984 | I125: =I124/Data!I40 -> 0.1269591643 | J125: =J124/Data!J40 -> 0.1958945587 | K125: =K124/Data!K40 -> 0.1255905243
B127: Gecorrigeerde SAIFI totaal | D127: =D125+Data!D47 -> 0.2416452885 | E127: =E125+Data!E47 -> 0.2976203001 | F127: =F125+Data!F47 -> 0.114154434 | G127: =G125+Data!G47 -> 0.23985937 | H127: =H125+Data!H47 -> 0.2924786732 | I127: =I125+Data!I47 -> 0.1544766741 | J127: =J125+Data!J47 -> 0.2320831917 | K127: =K125+Data!K47 -> 0.169211683
B129: Oorspronkelijke SAIFI totaal | D129: =Data!D49 -> 0.2319259499 | E129: =Data!E49 -> 0.2976203001 | F129: =Data!F49 -> 0.1045855267 | G129: =Data!G49 -> 0.2251506677 | H129: =Data!H49 -> 0.289402236 | I129: =Data!I49 -> 0.1449649805 | J129: =Data!J49 -> 0.2316388261 | K129: =Data!K49 -> 0.1284656082
B130: Check op zero-sum effect | C130: =C94-SUM(D124:K124)/SUM(Data!D40:K40) -> 0.001256953668

Sheet q-factoren
B3: Berekening Q-factoren
B4: (inclusief de correctie voor
B5: onder/boven-liggende netbeheerders)
D9: COGAS | E9: DNWB | F9: ENDINET | G9: ENEXIS | H9: LIANDER | I9: RENDO | J9: STEDIN | K9: WESTLAND | L9: TOTAAL/GEMIDDELD | N9: Verwijzing formuleblad
B11: Input x-factoren
B12: Begininkomsten 2013 met toepassing van aanpassing naar efficiënte kosten | D12: 16538248 | E12: 70510233 | F12: 32819915 | G12: 900136332 | H12: 973297947 | I12: 11131359 | J12: 665106177 | K12: 47230367 | P12: Bron: gewijzigd X-factormodel 2014-2016 elektriciteit (aug 2016)
B13: X-factor voor de periode 2014-2016 | D13: 4.8 | E13: 4.46 | F13: 5.01 | G13: 4.66 | H13: 4.36 | I13: 4.88 | J13: 4.35 | K13: 4.63 | P13: Bron: gewijzigd X-factormodel 2014-2016 elektriciteit (aug 2016)
B16: Kwaliteitsprestatie 2010
B18: CAIDI | D18: =Data!D22 -> 68.21148429 | E18: =Data!E22 -> 67.47169026 | F18: =Data!F22 -> 49.76439853 | G18: =Data!G22 -> 105.3720911 | H18: =Data!H22 -> 93.01729766 | I18: =Data!I22 -> 76.79655689 | J18: =Data!J22 -> 125.6671124 | K18: =Data!K22 -> 45.69509719 | N18: (51)
B19: SAIFI gecorrigeerd | D19: ='Verrekening onder-boven'!$D45 -> 0.0983887048 | E19: ='Verrekening onder-boven'!$E45 -> 0.3899331467 | F19: ='Verrekening onder-boven'!$F45 -> 0.2505100588 | G19: ='Verrekening onder-boven'!$G45 -> 0.2172567305 | H19: ='Verrekening onder-boven'!$H45 -> 0.3289945533 | I19: ='Verrekening onder-boven'!$I45 -> 0.2218008928 | J19: ='Verrekening onder-boven'!$J45 -> 0.1800298764 | K19: ='Verrekening onder-boven'!$K45 -> 0.7174804844 | N19: (50), (53), (54), (55) en (56)
B20: Waardering Huishoudens | D20: =-1*SEO("H",D$19,D$18/60) -> 10.62189289 | E20: =-1*SEO("H",E$19,E$18/60) -> -3.838004403 | F20: =-1*SEO("H",F$19,F$18/60) -> -1.79748228 | G20: -2.718850158 | H20: -4.18937 | I20: -2.261894285 | J20: -2.111735698 | K20: -3.890526663 | N20: (59)
B21: Waardering Bedrijven | D21: =-1*SEO("B",D$19,D$18/60) -> -4.990738731 | E21: =-1*SEO("B",E$19,E$18/60) -> -41.74715549 | F21: =-1*SEO("B",F$19,F$18/60) -> -23.84131679 | G21: -33.24471195 | H21: -44.7710586 | I21: -28.58002337 | J21: -29.11447763 | K21: -43.87207701 | N21: (60)
B22: Kwaliteitsprestatie | D22: =(D20*PercH2010+D21*PercB2010) -> 8.59225078 | E22: =(E20*PercH2010+E21*PercB2010) -> -8.766194044 | F22: -4.663180766 | G22: -6.687212191 | H22: -9.464989518 | I22: -5.683251065 | J22: -5.62209215 | K22: -9.088128208 | L22: =SUMPRODUCT(D22:K22,D23:K23)/L23 -> -7.3030831 | N22: (61) en (62)
B23: # Afnemers | D23: =Data!$D24 -> 52699 | E23: =Data!$E24 -> 203281 | F23: =Data!$F24 -> 105324 | G23: =Data!$G24 -> 2597100 | H23: =Data!$H24 -> 2694813 | I23: =Data!$I24 -> 31637 | J23: =Data!$J24 -> 2053470 | K23: =Data!$K24 -> 53190 | L23: =SUM(D23:K23) -> 7791514
B25: Q-bedrag (prijspeil 2008) | D25: =(D22-$L22)*D23 -> 837668.2001 | E25: =(E22-$L22)*E23 -> -297422.6558 | F25: 278045.0734 | G25: 1599478.339 | H25: -5825933.52 | I25: 51246.62609 | J25: 3451864.487 | K25: -94946.54931 | L25: =SUM(D25:K25) -> 1.351872925e-08 | N25: (63) en (64)
B28: Kwaliteitsprestatie 2011
B30: CAIDI | D30: =Data!D35 -> 50.79706817 | E30: =Data!E35 -> 58.9751387 | F30: =Data!F35 -> 76.70216211 | G30: =Data!G35 -> 79.29496216 | H30: =Data!H35 -> 78.41782886 | I30: =Data!I35 -> 93.19489912 | J30: =Data!J35 -> 117.2582697 | K30: =Data!K35 -> 51.60924896 | N30: (51)
B31: SAIFI gecorrigeerd | D31: ='Verrekening onder-boven'!$D86 -> 0.1173297122 | E31: ='Verrekening onder-boven'!$E86 -> 0.253596535 | F31: ='Verrekening onder-boven'!$F86 -> 0.4696230963 | G31: ='Verrekening onder-boven'!$G86 -> 0.2355243404 | H31: ='Verrekening onder-boven'!$H86 -> 0.2539039925 | I31: ='Verrekening onder-boven'!$I86 -> 0.0919480697 | J31: ='Verrekening onder-boven'!$J86 -> 0.1780486246 | K31: ='Verrekening onder-boven'!$K86 -> 0.3390371271 | N31: (50), (53), (54), (55) en (56)
B32: Waardering Huishoudens | D32: =-1*SEO("H",D$31,D$30/60) -> 10.45411933 | E32: =-1*SEO("H",E$31,E$30/60) -> -2.181075148 | F32: -4.920420464 | G32: -2.533072557 | H32: -2.780670314 | I32: 10.58122866 | J32: -1.979701917 | K32: -2.61821295 | N32: (59)
B33: Waardering Bedrijven | D33: =-1*SEO("B",D$31,D$30/60) -> -7.75570067 | E33: =-1*SEO("B",E$31,E$30/60) -> -27.39461549 | F33: -50.7444824 | G33: -30.91450052 | H33: -32.94520308 | I33: -3.902484187 | J33: -27.78546069 | K33: -31.3564064 | N33: (60)
B34: Kwaliteitsprestatie | D34: =(D32*PercH2011+D33*PercB2011) -> 7.904744529 | E34: -5.710970796 | F34: -11.33578913 | G34: -6.506472472 | H34: -7.003704902 | I34: 8.553508864 | J34: -5.592508145 | K34: -6.641560032 | L34: =SUMPRODUCT(D34:K34,D35:K35)/L35 -> -6.331643339 | N34: (61) en (62)
B35: # Afnemers | D35: =Data!$D37 -> 52566 | E35: =Data!$E37 -> 208256 | F35: =Data!$F37 -> 106030 | G35: =Data!$G37 -> 2616840 | H35: =Data!$H37 -> 2771415 | I35: =Data!$I37 -> 31867 | J35: =Data!$J37 -> 2050254 | K35: =Data!$K37 -> 53943 | L35: =SUM(D35:K35) -> 7891171
B37: Q-bedrag (prijspeil 2008) | D37: =(D34-$L34)*D35 -> 748349.9647 | E37: =(E34-$L34)*E35 -> 129258.7811 | F37: -530589.5787 | G37: -457499.8684 | H37: -1862561.496 | I37: 474345.1453 | J37: 1515414.888 | K37: -16717.83619 | L37: =SUM(D37:K37) -> -8.501956472e-09 | N37: (63) en (64)
B40: Kwaliteitsprestatie 2012
B42: CAIDI | D42: =Data!D48 -> 55.69298604 | E42: =Data!E48 -> 65.06449954 | F42: =Data!F48 -> 82.60136694 | G42: =Data!G48 -> 94.40311671 | H42: =Data!H48 -> 81.71032982 | I42: =Data!I48 -> 64.50161048 | J42: =Data!J48 -> 144.038934 | K42: =Data!K48 -> 60.97302459 | N42: (51)
B43: SAIFI gecorrigeerd | D43: ='Verrekening onder-boven'!$D127 -> 0.2416452885 | E43: ='Verrekening onder-boven'!$E127 -> 0.2976203001 | F43: ='Verrekening onder-boven'!$F127 -> 0.114154434 | G43: ='Verrekening onder-boven'!$G127 -> 0.23985937 | H43: ='Verrekening onder-boven'!$H127 -> 0.2924786732 | I43: ='Verrekening onder-boven'!$I127 -> 0.1544766741 | J43: ='Verrekening onder-boven'!$J127 -> 0.2320831917 | K43: ='Verrekening onder-boven'!$K127 -> 0.169211683 | N43: (50), (53), (54), (55) en (56)
B44: Waardering Huishoudens | D44: =-1*SEO("H",D$43,D$42/60) -> -1.933251495 | E44: =-1*SEO("H",E$43,E$42/60) -> -2.88034047 | F44: 10.1900609 | G44: -2.936946747 | H44: -3.390090385 | I44: -0.8711438404 | J44: -3.584816218 | K44: -1.08672831 | N44: (59)
B45: Waardering Bedrijven | D45: =-1*SEO("B",D$43,D$42/60) -> -25.14068882 | E45: =-1*SEO("B",E$43,E$42/60) -> -33.54669395 | F45: -9.929159683 | G45: -34.66467135 | H45: -38.06145823 | I45: -16.22301691 | J45: -41.10380585 | K45: -17.87645513 | N45: (60)
B46: Kwaliteitsprestatie | D46: =(D44*PercH2012+D45*PercB2012) -> -5.18229272 | E46: =(E44*PercH2012+E45*PercB2012) -> -7.173629956 | F46: =(F44*PercH2012+F45*PercB2012) -> 7.37337002 | G46: -7.378828191 | H46: -8.244081883 | I46: -3.02040607 | J46: -8.837474766 | K46: -3.437290065 | L46: =SUMPRODUCT(D46:K46,D47:K47)/L47 -> -7.800929565 | N46: (61) en (62)
B47: # Afnemers | D47: =Data!$D50 -> 52752 | E47: =Data!$E50 -> 209102 | F47: =Data!$F50 -> 107693 | G47: =Data!$G50 -> 2635273 | H47: =Data!$H50 -> 2898074 | I47: =Data!$I50 -> 32125 | J47: =Data!$J50 -> 2049207 | K47: =Data!$K50 -> 54767 | L47: =SUM(D47:K47) -> 8038993
B49: Q-bedrag (prijspeil 2008) | D49: =(D46-$L46)*D47 -> 138138.3308 | E49: =(E46-$L46)*E47 -> 131169.6027 | F49: 1634165.845 | G49: 1112352.354 | H49: -1284288.211 | I49: 153574.3172 | J49: -2124095.683 | K49: 238983.4445 | L49: =SUM(D49:K49) -> -6.839400157e-09 | N49: (63) en (64)
B52: Berekening Q-factor
B54: CPI van 2008 naar 2013 | D54: =Parameters!C30 -> 0.1027312118
B55: CPI van 2010 naar 2013 | D55: =Parameters!D30 -> 0.06534197
B57: Totale Q-bedrag (prijspeil 2008) | D57: =D25+D37+D49 -> 1724156.496 | E57: =E25+E37+E49 -> -36994.27209 | F57: 1381621.34 | G57: 2254330.824 | H57: -8972783.227 | I57: 679166.0886 | J57: 2843183.692 | K57: 127319.059 | L57: =SUM(D57:K57) -> -1.353328116e-09
B58: Totale Q-bedrag (prijspeil 2013) | D58: =D57*(1+$D$54) -> 1901281.182 | E58: =E57*(1+$D$54) -> -40794.73849 | F58: 1523556.974 | G58: 2485920.962 | H58: -9894568.121 | I58: 748937.6439 | J58: 3135267.398 | K58: 140398.7002 | L58: =SUM(D58:K58) -> -1.949956641e-09
B59: 2/3 van Q-bedrag (prijspeil 2013) | D59: =D58*2/3 -> 1267520.788 | E59: =E58*2/3 -> -27196.49233 | F59: 1015704.65 | G59: 1657280.641 | H59: -6596378.747 | I59: 499291.7626 | J59: 2090178.265 | K59: 93599.13346 | L59: -1.61526259e-09
B61: Q-bedrag NE5R (prijspeil 2010) | D61: 1986260.901 | E61: 279912.5754 | F61: 2407396.593 | G61: 882800.4346 | H61: -10577722.16 | I61: 852998.7649 | J61: 4313524.02 | K61: -145171.1314 | L61: =SUM(D61:K61) -> -5.937181413e-09
B62: Q-bedrag NE5R (prijspeil 2013) | D62: =D61*(1+$D$55) -> 2116047.102 | E62: =E61*(1+$D$55) -> 298202.6145 | F62: 2564700.629 | G62: 940484.3541 | H62: -11268891.36 | I62: 908735.3846 | J62: 4595378.177 | K62: -154656.8991 | L62: =SUM(D62:K62) -> -4.976755008e-09
B63: 1/3 Q-bedrag NE5R (prijspeil 2013) | D63: =D61/3 -> 662086.9672 | E63: =E61/3 -> 93304.1918 | F63: 802465.5309 | G63: 294266.8115 | H63: -3525907.386 | I63: 284332.9216 | J63: 1437841.34 | K63: -48390.37714 | L63: =SUM(D63:K63) -> -1.43336365e-09
B65: Totale bedrag dat verrekend moet worden in q-factor NE6R | D65: =D59+D63 -> 1929607.755 | E65: =E59+E63 -> 66107.69948 | F65: 1818170.18 | G65: 1951547.453 | H65: -10122286.13 | I65: 783624.6842 | J65: 3528019.605 | K65: 45208.75632
B67: Doelzoeken
B68: links (BI - x + 1/3 Q-bedrag NE5R + 2/3 Q-bedrag NE6R) | D68: =D12*(1-D13/100)+D12*(1-D13/100)^2+D12*(1-D13/100)^3+D65 -> 46931923.83 | E68: 193283037.5 | F68: 90737634.84 | G68: 2458410136 | H68: 2662476945 | I68: 31023180.8 | J68: 1830233280 | K68: 129016015.1 | N68: (65) links
B69: rechts (BI - x + q) | D69: =D12*(1-D13/100+D71/100)+D12*(1-D13/100+D71/100)^2+D12*(1-D13/100+D71/100)^3 -> 46931923.83 | E69: 193283037.5 | F69: 90737634.84 | G69: 2458410136 | H69: 2662476945 | I69: 31023180.8 | J69: 1830233280 | K69: 129016015.1 | N69: (65) rechts
B70: links - rechts = nul | D70: =D68-D69 -> 1.341104507e-07 | E70: =E68-E69 -> 2.682209015e-07 | F70: 0 | G70: 0 | H70: 0 | I70: 0 | J70: 0 | K70: 2.086162567e-07
B71: q-factor 2014-2017 (niet afgerond) | D71: 2.04613755 | E71: 0.01659457451 | F71: 0.9814388153 | G71: 0.03847348184 | H71: -0.1840776082 | I71: 1.242728378 | J71: 0.09369654838 | K71: 0.01698155037
A73: Resultaat (ongecorrigeerd)
B74: q-factor 2014-2017 (afgerond) | D74: =IF(D71>0,ROUNDUP(D71,2),ROUNDDOWN(D71,2)) -> 2.05 | E74: =IF(E71>0,ROUNDUP(E71,2),ROUNDDOWN(E71,2)) -> 0.02 | F74: 0.99 | G74: 0.04 | H74: -0.18 | I74: 1.25 | J74: 0.1 | K74: 0.02

Sheet Parameters
B8: PARAMETERS SEO-WAARDERINGSFUNCTIE
B10: De volgende parameters worden in de waarderingsfunctie van SEO (update 2009, prijspeil 2008) gebruikt:
C12: Huishoudens | D12: Bedrijven | F12: DEZE TABEL NIET VERPLAASTEN VANWEGE MACRO!
B13: µ1 | C13: 0.08 | D13: 0.11
B14: µ2 | C14: 100 | D14: 100
B15: λ0 | C15: 2.8 | D15: 18.18
B16: λ0* | C16: 5.77 | D16: 43.01
B17: λ1 | C17: 2.89 | D17: 4.19
B18: P0 | C18: -12.53 | D18: -86.97
B20: CPI Data (bron CBS)
B22: 2009 | C22: 0.032
B23: 2010 | C23: 0.003
B24: 2011 | C24: 0.015
B25: 2012 | C25: 0.026
B26: 2013 | C26: 0.023
B29: CPI van/naar | C29: van 2008 | D29: van 2010
B30: naar 2013 | C30: =(1+C22)*(1+C23)*(1+C24)*(1+C25)*(1+C26)-1 -> 0.1027312118 | D30: =(1+C24)*(1+C25)*(1+C26)-1 -> 0.06534197
B33: VERDELING HUISHOUDENS/MKB
C35: % Huishoudens | D35: % MKB
B36: 2010 | C36: 0.87 | D36: 0.13
B37: 2011 | C37: 0.86 | D37: 0.14
B38: 2012 | C38: 0.86 | D38: 0.14
B40: Gewichten onder- en bovenliggende netbeheerders
C42: Aandeel
B43: Onderliggende | C43: 0.95
B44: Bovenliggend | C44: 0.05
B46: Volgorde netbeheerders in data-tabel
B48: COGAS | C48: 1
B49: DNWB | C49: 2
B50: ENDINET | C50: 3
B51: ENEXIS | C51: 4
B52: LIANDER | C52: 5
B53: RENDO | C53: 6
B54: STEDIN | C54: 7
B55: WESTLAND | C55: 8
